[Event "December 19 Early 2023"]
[Site "https://www.chess.com"]
[Date "2023.12.19"]
[Round "1"]
[White "Bortnyk, Olexandr"]
[Black "Oganisian, Roman"]
[Result "1-0"]
[Board "29"]
[TimeControl "180+1"]
[WhiteFideId "14120828"]
[BlackFideId "4153006"]
[WhiteElo "2731"]
[BlackElo "2204"]
[WhiteTeam "UKR"]
[BlackTeam "RUS"]
[WhiteClock "0:01:31"]
[BlackClock "0:00:00"]

1. e4 {[%clk 0:02:54]}  e6 {[%clk 0:02:59]} 2. d4 {[%clk 0:02:53]}  d5 {[%clk 0:03:00]} 3. e5 {[%clk 0:02:52]}  c5 {[%clk 0:02:59]} 4. Nf3 {[%clk 0:02:53]}  Nc6 {[%clk 0:03:00]} 5. Bd3 {[%clk 0:02:52]}  Nh6 {[%clk 0:02:58]} 6. O-O {[%clk 0:02:48]}  Nf5 {[%clk 0:02:52]} 7. Bxf5 {[%clk 0:02:46]}  exf5 {[%clk 0:02:51]} 8. Bg5 {[%clk 0:02:44]}  Qc7 {[%clk 0:02:38]} 9. Nc3 {[%clk 0:02:36]}  Be6 {[%clk 0:02:37]} 10. dxc5 {[%clk 0:02:35]}  h6 {[%clk 0:02:29]} 11. Be3 {[%clk 0:02:26]}  f4 {[%clk 0:01:16]} 12. Bxf4 {[%clk 0:02:22]}  Bxc5 {[%clk 0:01:16]} 13. Nxd5 {[%clk 0:02:21]}  Qa5 {[%clk 0:01:02]} 14. c4 {[%clk 0:02:14]}  O-O-O {[%clk 0:00:58]} 15. a3 {[%clk 0:01:51]}  Bxd5 {[%clk 0:00:58]} 16. cxd5 {[%clk 0:01:52]}  Rxd5 {[%clk 0:00:57]} 17. Qc2 {[%clk 0:01:52]}  Qb6 {[%clk 0:00:38]} 18. b4 {[%clk 0:01:51]}  Be7 {[%clk 0:00:37]} 19. Qf5+ {[%clk 0:01:50]}  Rd7 {[%clk 0:00:34]} 20. Rad1 {[%clk 0:01:47]}  Rd8 {[%clk 0:00:32]} 21. Rxd7 {[%clk 0:01:47]}  Rxd7 {[%clk 0:00:31]} 22. Qxf7 {[%clk 0:01:48]}  Nd4 {[%clk 0:00:10]} 23. Nxd4 {[%clk 0:01:40]}  Qxd4 {[%clk 0:00:09]} 24. Rc1+ {[%clk 0:01:39]}  Rc7 {[%clk 0:00:00]} 25. Rxc7+ {[%clk 0:01:31]} 1-0

[Event "December 19 Early 2023"]
[Site "https://www.chess.com"]
[Date "2023.12.19"]
[Round "1"]
[White "Movahed, Sina"]
[Black "Sadovsky, Artem"]
[Result "1-0"]
[Board "31"]
[TimeControl "180+1"]
[WhiteFideId "42520835"]
[BlackFideId "4155840"]
[WhiteElo "2341"]
[BlackElo "2314"]
[WhiteTeam "IRI"]
[BlackTeam "FID"]
[WhiteClock "0:00:19"]
[BlackClock "0:00:00"]

1. e4 {[%clk 0:03:00]}  g6 {[%clk 0:02:57]} 2. d4 {[%clk 0:03:00]}  Bg7 {[%clk 0:02:57]} 3. Nc3 {[%clk 0:02:56]}  d6 {[%clk 0:02:58]} 4. Be3 {[%clk 0:02:56]}  e5 {[%clk 0:02:58]} 5. dxe5 {[%clk 0:02:55]}  dxe5 {[%clk 0:02:59]} 6. Qxd8+ {[%clk 0:02:55]}  Kxd8 {[%clk 0:03:00]} 7. O-O-O+ {[%clk 0:02:55]}  Nd7 {[%clk 0:03:01]} 8. Bc4 {[%clk 0:02:55]}  f6 {[%clk 0:03:01]} 9. f4 {[%clk 0:02:50]}  exf4 {[%clk 0:02:55]} 10. Bxf4 {[%clk 0:02:51]}  Bh6 {[%clk 0:02:55]} 11. Bxh6 {[%clk 0:02:48]}  Nxh6 {[%clk 0:02:56]} 12. Nf3 {[%clk 0:02:49]}  c6 {[%clk 0:02:48]} 13. e5 {[%clk 0:02:28]}  fxe5 {[%clk 0:02:49]} 14. Nxe5 {[%clk 0:02:29]}  Kc7 {[%clk 0:02:48]} 15. Rhe1 {[%clk 0:02:29]}  Re8 {[%clk 0:02:22]} 16. Nf3 {[%clk 0:02:28]}  Nf6 {[%clk 0:02:07]} 17. Rxe8 {[%clk 0:02:25]}  Nxe8 {[%clk 0:02:08]} 18. Ng5 {[%clk 0:02:07]}  Nd6 {[%clk 0:01:24]} 19. Bd3 {[%clk 0:01:55]}  Bf5 {[%clk 0:01:10]} 20. Nxh7 {[%clk 0:01:54]}  Rh8 {[%clk 0:01:03]} 21. Ng5 {[%clk 0:01:53]}  Ng4 {[%clk 0:00:58]} 22. Bxf5 {[%clk 0:01:49]}  Nxf5 {[%clk 0:00:54]} 23. h3 {[%clk 0:01:45]}  Nge3 {[%clk 0:00:46]} 24. Rd2 {[%clk 0:01:45]}  Re8 {[%clk 0:00:37]} 25. b3 {[%clk 0:01:45]}  b5 {[%clk 0:00:36]} 26. a3 {[%clk 0:01:36]}  a5 {[%clk 0:00:35]} 27. Nce4 {[%clk 0:01:35]}  b4 {[%clk 0:00:22]} 28. axb4 {[%clk 0:01:32]}  axb4 {[%clk 0:00:23]} 29. g4 {[%clk 0:01:31]}  Nh4 {[%clk 0:00:14]} 30. Nf6 {[%clk 0:01:13]}  Re7 {[%clk 0:00:14]} 31. Rd4 {[%clk 0:01:14]}  Nd5 {[%clk 0:00:12]} 32. Nxd5+ {[%clk 0:01:11]}  cxd5 {[%clk 0:00:12]} 33. Rxb4 {[%clk 0:01:11]}  Re5 {[%clk 0:00:10]} 34. Nh7 {[%clk 0:01:10]}  Re3 {[%clk 0:00:06]} 35. Nf6 {[%clk 0:01:09]}  Kd6 {[%clk 0:00:06]} 36. g5 {[%clk 0:01:01]}  Rxh3 {[%clk 0:00:05]} 37. Rd4 {[%clk 0:01:00]}  Nf3 {[%clk 0:00:05]} 38. Rxd5+ {[%clk 0:01:00]}  Ke6 {[%clk 0:00:06]} 39. Rb5 {[%clk 0:00:51]}  Nxg5 {[%clk 0:00:06]} 40. Ng4 {[%clk 0:00:52]}  Nf3 {[%clk 0:00:05]} 41. Kb2 {[%clk 0:00:49]}  Rg3 {[%clk 0:00:05]} 42. Rb6+ {[%clk 0:00:42]}  Kf5 {[%clk 0:00:04]} 43. Ne3+ {[%clk 0:00:42]}  Ke4 {[%clk 0:00:05]} 44. Re6+ {[%clk 0:00:39]}  Kf4 {[%clk 0:00:06]} 45. Nd5+ {[%clk 0:00:35]}  Kf5 {[%clk 0:00:05]} 46. Re8 {[%clk 0:00:35]}  Nd4 {[%clk 0:00:05]} 47. b4 {[%clk 0:00:33]}  Kg5 {[%clk 0:00:03]} 48. Re5+ {[%clk 0:00:29]}  Kh6 {[%clk 0:00:03]} 49. Re4 {[%clk 0:00:27]}  Nf5 {[%clk 0:00:02]} 50. b5 {[%clk 0:00:27]}  Nd6 {[%clk 0:00:03]} 51. Rb4 {[%clk 0:00:26]}  Rg5 {[%clk 0:00:03]} 52. Nc3 {[%clk 0:00:24]}  Rc5 {[%clk 0:00:02]} 53. b6 {[%clk 0:00:23]}  Nc4+ {[%clk 0:00:02]} 54. Kb3 {[%clk 0:00:20]}  Nd2+ {[%clk 0:00:00]} 55. Ka4 {[%clk 0:00:19]} 1-0

[Event "December 19 Early 2023"]
[Site "https://www.chess.com"]
[Date "2023.12.19"]
[Round "1"]
[White "Valle Luis, Leo"]
[Black "Liascovich, Lucas"]
[Result "0-1"]
[Board "32"]
[TimeControl "180+1"]
[WhiteFideId "54577187"]
[BlackFideId "108634"]
[WhiteElo "2143"]
[BlackElo "2455"]
[WhiteTeam "ESP"]
[BlackTeam "ARG"]
[WhiteClock "0:00:05"]
[BlackClock "0:00:49"]

1. e4 {[%clk 0:03:00]}  e5 {[%clk 0:02:59]} 2. Nf3 {[%clk 0:03:01]}  Nc6 {[%clk 0:03:00]} 3. Bb5 {[%clk 0:03:02]}  a6 {[%clk 0:02:58]} 4. Ba4 {[%clk 0:03:02]}  d6 {[%clk 0:02:58]} 5. O-O {[%clk 0:03:02]}  f5 {[%clk 0:02:57]} 6. d3 {[%clk 0:02:58]}  fxe4 {[%clk 0:02:55]} 7. dxe4 {[%clk 0:02:59]}  Nf6 {[%clk 0:02:55]} 8. Re1 {[%clk 0:02:53]}  Be7 {[%clk 0:02:56]} 9. Nc3 {[%clk 0:02:50]}  O-O {[%clk 0:02:56]} 10. h3 {[%clk 0:02:50]}  b5 {[%clk 0:02:50]} 11. Bb3+ {[%clk 0:02:50]}  Kh8 {[%clk 0:02:51]} 12. a4 {[%clk 0:02:49]}  b4 {[%clk 0:02:48]} 13. Nd5 {[%clk 0:02:48]}  Nxd5 {[%clk 0:02:48]} 14. Bxd5 {[%clk 0:02:46]}  Bd7 {[%clk 0:02:48]} 15. Be3 {[%clk 0:02:41]}  Qe8 {[%clk 0:02:48]} 16. Kh2 {[%clk 0:02:26]}  Qh5 {[%clk 0:02:41]} 17. Ng1 {[%clk 0:02:24]}  Qg6 {[%clk 0:02:39]} 18. Qd2 {[%clk 0:02:20]}  Rab8 {[%clk 0:02:37]} 19. Ne2 {[%clk 0:02:04]}  h6 {[%clk 0:02:19]} 20. Ng3 {[%clk 0:02:03]}  Bh4 {[%clk 0:02:07]} 21. Rf1 {[%clk 0:02:01]}  a5 {[%clk 0:02:01]} 22. b3 {[%clk 0:01:58]}  Ne7 {[%clk 0:01:51]} 23. Rae1 {[%clk 0:01:44]}  Nxd5 {[%clk 0:01:51]} 24. Qxd5 {[%clk 0:01:41]}  Rf6 {[%clk 0:01:42]} 25. Nh1 {[%clk 0:01:31]}  Rbf8 {[%clk 0:01:38]} 26. Qxa5 {[%clk 0:01:23]}  c5 {[%clk 0:01:29]} 27. Qc7 {[%clk 0:01:02]}  Bc8 {[%clk 0:01:25]} 28. Rd1 {[%clk 0:00:59]}  Ba6 {[%clk 0:01:23]} 29. Rfe1 {[%clk 0:00:52]}  Bg5 {[%clk 0:01:16]} 30. Bxg5 {[%clk 0:00:49]}  hxg5 {[%clk 0:01:17]} 31. f3 {[%clk 0:00:49]}  Bc8 {[%clk 0:01:15]} 32. Ng3 {[%clk 0:00:47]}  g4 {[%clk 0:01:13]} 33. fxg4 {[%clk 0:00:39]}  Bxg4 {[%clk 0:01:11]} 34. hxg4 {[%clk 0:00:36]}  Qxg4 {[%clk 0:01:12]} 35. Nf5 {[%clk 0:00:34]}  Rg6 {[%clk 0:01:09]} 36. Rd2 {[%clk 0:00:14]}  Rxf5 {[%clk 0:00:55]} 37. Qc8+ {[%clk 0:00:08]}  Kh7 {[%clk 0:00:53]} 38. Qxf5 {[%clk 0:00:08]}  Qg3+ {[%clk 0:00:50]} 39. Kg1 {[%clk 0:00:06]}  Qxe1+ {[%clk 0:00:51]} 40. Kh2 {[%clk 0:00:07]}  Qxd2 {[%clk 0:00:48]} 41. Kg1 {[%clk 0:00:06]}  Qh6 {[%clk 0:00:49]} 42. Kf2 {[%clk 0:00:05]}  Qf4+ {[%clk 0:00:49]} 0-1

[Event "December 19 Early 2023"]
[Site "https://www.chess.com"]
[Date "2023.12.19"]
[Round "1"]
[White "Svane, Frederik"]
[Black "Karas, Marek"]
[Result "1-0"]
[Board "33"]
[TimeControl "180+1"]
[WhiteFideId "12923044"]
[BlackFideId "14928558"]
[WhiteElo "2502"]
[BlackElo "2218"]
[WhiteTeam "GER"]
[BlackTeam "CZE"]
[WhiteClock "0:01:13"]
[BlackClock "0:01:06"]

1. Nf3 {[%clk 0:03:00]}  Nf6 {[%clk 0:02:59]} 2. g3 {[%clk 0:02:54]}  d5 {[%clk 0:02:59]} 3. Bg2 {[%clk 0:02:53]}  Nbd7 {[%clk 0:02:58]} 4. O-O {[%clk 0:02:54]}  e5 {[%clk 0:02:58]} 5. d3 {[%clk 0:02:53]}  c6 {[%clk 0:02:57]} 6. Nc3 {[%clk 0:02:51]}  Bc5 {[%clk 0:02:50]} 7. Nxe5 {[%clk 0:02:47]}  Nxe5 {[%clk 0:02:48]} 8. d4 {[%clk 0:02:47]}  Bd6 {[%clk 0:02:48]} 9. dxe5 {[%clk 0:02:48]}  Bxe5 {[%clk 0:02:49]} 10. Bg5 {[%clk 0:02:24]}  h6 {[%clk 0:02:48]} 11. Bxf6 {[%clk 0:02:24]}  Bxf6 {[%clk 0:02:49]} 12. Qd2 {[%clk 0:02:21]}  Qa5 {[%clk 0:02:44]} 13. Rad1 {[%clk 0:02:16]}  O-O {[%clk 0:02:39]} 14. Nxd5 {[%clk 0:02:15]}  Qd8 {[%clk 0:02:31]} 15. Nxf6+ {[%clk 0:02:13]}  Qxf6 {[%clk 0:02:32]} 16. Qd4 {[%clk 0:02:13]}  Qxd4 {[%clk 0:02:28]} 17. Rxd4 {[%clk 0:02:14]}  Be6 {[%clk 0:02:28]} 18. Rfd1 {[%clk 0:02:08]}  a5 {[%clk 0:02:23]} 19. a3 {[%clk 0:02:07]}  Rfc8 {[%clk 0:02:16]} 20. f4 {[%clk 0:02:06]}  Kf8 {[%clk 0:02:12]} 21. Kf2 {[%clk 0:02:06]}  Ke7 {[%clk 0:02:11]} 22. e4 {[%clk 0:02:02]}  g6 {[%clk 0:02:11]} 23. e5 {[%clk 0:02:00]}  Ra6 {[%clk 0:02:05]} 24. c3 {[%clk 0:01:59]}  Rb6 {[%clk 0:02:04]} 25. R1d2 {[%clk 0:01:57]}  h5 {[%clk 0:02:01]} 26. Ke3 {[%clk 0:01:57]}  Rh8 {[%clk 0:01:58]} 27. Bf3 {[%clk 0:01:56]}  Rb5 {[%clk 0:01:53]} 28. Be2 {[%clk 0:01:49]}  Rb6 {[%clk 0:01:53]} 29. Bc4 {[%clk 0:01:40]}  Bxc4 {[%clk 0:01:50]} 30. Rxc4 {[%clk 0:01:41]}  Rd8 {[%clk 0:01:38]} 31. Rcd4 {[%clk 0:01:41]}  Rxd4 {[%clk 0:01:37]} 32. Kxd4 {[%clk 0:01:42]}  Rb5 {[%clk 0:01:34]} 33. Ke4 {[%clk 0:01:42]}  a4 {[%clk 0:01:29]} 34. h3 {[%clk 0:01:42]}  Rb3 {[%clk 0:01:22]} 35. g4 {[%clk 0:01:40]}  hxg4 {[%clk 0:01:23]} 36. hxg4 {[%clk 0:01:41]}  b5 {[%clk 0:01:23]} 37. f5 {[%clk 0:01:41]}  gxf5+ {[%clk 0:01:23]} 38. gxf5 {[%clk 0:01:42]}  c5 {[%clk 0:01:23]} 39. f6+ {[%clk 0:01:42]}  Ke8 {[%clk 0:01:23]} 40. e6 {[%clk 0:01:14]}  fxe6 {[%clk 0:01:15]} 41. Ke5 {[%clk 0:01:14]}  b4 {[%clk 0:01:06]} 42. Kxe6 {[%clk 0:01:13]} 1-0

[Event "December 19 Early 2023"]
[Site "https://www.chess.com"]
[Date "2023.12.19"]
[Round "1"]
[White "Kochiev, Ivan"]
[Black "Grandelius, Nils"]
[Result "0-1"]
[Board "34"]
[TimeControl "180+1"]
[WhiteFideId "2917890"]
[BlackFideId "1710400"]
[WhiteElo "2285"]
[BlackElo "2573"]
[WhiteTeam "BUL"]
[BlackTeam "SWE"]
[WhiteClock "0:00:04"]
[BlackClock "0:00:19"]

1. e4 {[%clk 0:03:00]}  e6 {[%clk 0:02:54]} 2. d4 {[%clk 0:02:59]}  d5 {[%clk 0:02:55]} 3. Nd2 {[%clk 0:02:59]}  e5 {[%clk 0:02:52]} 4. dxe5 {[%clk 0:02:47]}  Nc6 {[%clk 0:02:47]} 5. Bb5 {[%clk 0:02:41]}  dxe4 {[%clk 0:02:40]} 6. Nxe4 {[%clk 0:02:41]}  Qxd1+ {[%clk 0:02:38]} 7. Kxd1 {[%clk 0:02:42]}  Bf5 {[%clk 0:02:36]} 8. Bxc6+ {[%clk 0:02:28]}  bxc6 {[%clk 0:02:37]} 9. Ng3 {[%clk 0:02:18]}  Bg6 {[%clk 0:02:29]} 10. c3 {[%clk 0:02:09]}  h5 {[%clk 0:02:06]} 11. h4 {[%clk 0:01:59]}  Ne7 {[%clk 0:02:05]} 12. N1e2 {[%clk 0:01:45]}  O-O-O+ {[%clk 0:01:55]} 13. Ke1 {[%clk 0:01:43]}  Nd5 {[%clk 0:01:49]} 14. Nf4 {[%clk 0:01:36]}  Nxf4 {[%clk 0:01:39]} 15. Bxf4 {[%clk 0:01:36]}  Bc5 {[%clk 0:01:34]} 16. Ke2 {[%clk 0:01:27]}  Rhe8 {[%clk 0:01:23]} 17. Rad1 {[%clk 0:01:21]}  Rxd1 {[%clk 0:00:58]} 18. Rxd1 {[%clk 0:01:16]}  Be7 {[%clk 0:00:45]} 19. Kf3 {[%clk 0:01:08]}  Bxh4 {[%clk 0:00:45]} 20. Rh1 {[%clk 0:01:07]}  Bxg3 {[%clk 0:00:42]} 21. Bxg3 {[%clk 0:01:01]}  Rd8 {[%clk 0:00:41]} 22. Bf4 {[%clk 0:00:56]}  Rd5 {[%clk 0:00:38]} 23. Re1 {[%clk 0:00:47]}  a5 {[%clk 0:00:36]} 24. e6 {[%clk 0:00:38]}  f6 {[%clk 0:00:34]} 25. e7 {[%clk 0:00:25]}  Be8 {[%clk 0:00:35]} 26. a4 {[%clk 0:00:22]}  c5 {[%clk 0:00:32]} 27. Ke4 {[%clk 0:00:16]}  Rd7 {[%clk 0:00:24]} 28. Kf5 {[%clk 0:00:15]}  Rd3 {[%clk 0:00:18]} 29. Ke4 {[%clk 0:00:13]}  c4 {[%clk 0:00:19]} 30. Kf5 {[%clk 0:00:11]}  Kd7 {[%clk 0:00:19]} 31. Re4 {[%clk 0:00:10]}  Rd5+ {[%clk 0:00:18]} 32. Be5 {[%clk 0:00:05]}  Rxe5+ {[%clk 0:00:18]} 33. Rxe5 {[%clk 0:00:05]}  fxe5 {[%clk 0:00:19]} 34. Kxe5 {[%clk 0:00:04]}  Kxe7 {[%clk 0:00:19]} 0-1

[Event "December 19 Early 2023"]
[Site "https://www.chess.com"]
[Date "2023.12.19"]
[Round "1"]
[White "Hrebenshchykova, Yelyzaveta"]
[Black "Galchenko, Matvey"]
[Result "0-1"]
[Board "36"]
[TimeControl "180+1"]
[WhiteFideId "14159899"]
[BlackFideId "24175480"]
[WhiteElo "2045"]
[BlackElo "2424"]
[WhiteTeam "UKR"]
[BlackTeam "FID"]
[WhiteClock "0:00:11"]
[BlackClock "0:01:27"]

1. e4 {[%clk 0:03:00]}  d5 {[%clk 0:02:56]} 2. exd5 {[%clk 0:03:00]}  Nf6 {[%clk 0:02:56]} 3. d4 {[%clk 0:02:58]}  Bg4 {[%clk 0:02:56]} 4. Nf3 {[%clk 0:02:44]}  Qxd5 {[%clk 0:02:54]} 5. Be2 {[%clk 0:02:43]}  Nc6 {[%clk 0:02:49]} 6. c4 {[%clk 0:02:36]}  Qh5 {[%clk 0:02:41]} 7. Be3 {[%clk 0:02:15]}  O-O-O {[%clk 0:02:33]} 8. Nbd2 {[%clk 0:02:15]}  e5 {[%clk 0:02:30]} 9. d5 {[%clk 0:02:11]}  Nd4 {[%clk 0:02:23]} 10. Nxd4 {[%clk 0:01:54]}  exd4 {[%clk 0:02:22]} 11. Bxd4 {[%clk 0:01:55]}  Bb4 {[%clk 0:01:50]} 12. Bxf6 {[%clk 0:01:15]}  Bxe2 {[%clk 0:01:47]} 13. Qa4 {[%clk 0:00:37]}  Bd3 {[%clk 0:01:43]} 14. f3 {[%clk 0:00:30]}  Rhe8+ {[%clk 0:01:43]} 15. Kd1 {[%clk 0:00:30]}  Be2+ {[%clk 0:01:34]} 16. Kc1 {[%clk 0:00:30]}  Bxd2+ {[%clk 0:01:34]} 17. Kxd2 {[%clk 0:00:31]}  Qh6+ {[%clk 0:01:32]} 18. Kc2 {[%clk 0:00:28]}  Qxf6 {[%clk 0:01:30]} 19. Qxa7 {[%clk 0:00:26]}  Qf5+ {[%clk 0:01:27]} 20. Kc1 {[%clk 0:00:11]}  Qf4+ {[%clk 0:01:27]} 0-1

[Event "December 19 Early 2023"]
[Site "https://www.chess.com"]
[Date "2023.12.19"]
[Round "1"]
[White "Ter-Sahakyan, Samvel"]
[Black "Bressy, Theo"]
[Result "1-0"]
[Board "39"]
[TimeControl "180+1"]
[WhiteFideId "13302531"]
[BlackFideId "26022842"]
[WhiteElo "2556"]
[BlackElo "2163"]
[WhiteTeam "ARM"]
[BlackTeam "FRA"]
[WhiteClock "0:00:12"]
[BlackClock "0:00:09"]

1. d4 {[%clk 0:02:59]}  d5 {[%clk 0:03:00]} 2. c4 {[%clk 0:02:59]}  c6 {[%clk 0:03:00]} 3. Nf3 {[%clk 0:02:59]}  Nf6 {[%clk 0:03:00]} 4. Nc3 {[%clk 0:02:59]}  dxc4 {[%clk 0:03:01]} 5. e4 {[%clk 0:02:58]}  b5 {[%clk 0:03:00]} 6. a4 {[%clk 0:02:58]}  b4 {[%clk 0:02:56]} 7. Na2 {[%clk 0:02:57]}  Nxe4 {[%clk 0:02:55]} 8. Bxc4 {[%clk 0:02:55]}  Nd6 {[%clk 0:02:52]} 9. Bb3 {[%clk 0:02:51]}  a5 {[%clk 0:02:53]} 10. O-O {[%clk 0:02:50]}  Bg4 {[%clk 0:02:52]} 11. h3 {[%clk 0:02:47]}  Bh5 {[%clk 0:02:52]} 12. Re1 {[%clk 0:02:41]}  e6 {[%clk 0:02:45]} 13. d5 {[%clk 0:02:41]}  Bxf3 {[%clk 0:02:36]} 14. Qxf3 {[%clk 0:02:37]}  cxd5 {[%clk 0:02:32]} 15. Bxd5 {[%clk 0:02:36]}  Ra7 {[%clk 0:02:22]} 16. Bf4 {[%clk 0:02:20]}  Be7 {[%clk 0:02:16]} 17. Bb3 {[%clk 0:02:08]}  O-O {[%clk 0:02:10]} 18. Rad1 {[%clk 0:02:07]}  Rd7 {[%clk 0:02:11]} 19. g4 {[%clk 0:01:37]}  Qb6 {[%clk 0:01:45]} 20. Be3 {[%clk 0:01:32]}  Qb7 {[%clk 0:01:40]} 21. Qxb7 {[%clk 0:01:26]}  Nxb7 {[%clk 0:01:35]} 22. Nc1 {[%clk 0:01:20]}  Rfd8 {[%clk 0:01:15]} 23. Rxd7 {[%clk 0:01:17]}  Rxd7 {[%clk 0:01:16]} 24. Bc4 {[%clk 0:01:17]}  Bc5 {[%clk 0:01:07]} 25. Bb5 {[%clk 0:00:55]}  Rd8 {[%clk 0:00:54]} 26. Bf4 {[%clk 0:00:45]}  Bd6 {[%clk 0:00:50]} 27. Be3 {[%clk 0:00:43]}  Bc5 {[%clk 0:00:34]} 28. Bg5 {[%clk 0:00:43]}  Bd6 {[%clk 0:00:35]} 29. Bxd8 {[%clk 0:00:43]}  Nxd8 {[%clk 0:00:35]} 30. Nb3 {[%clk 0:00:42]}  Nb7 {[%clk 0:00:30]} 31. Bf1 {[%clk 0:00:37]}  Kf8 {[%clk 0:00:29]} 32. Bg2 {[%clk 0:00:36]}  Nc5 {[%clk 0:00:27]} 33. Nxc5 {[%clk 0:00:36]}  Bxc5 {[%clk 0:00:27]} 34. Rc1 {[%clk 0:00:37]}  Bd6 {[%clk 0:00:27]} 35. Bf1 {[%clk 0:00:32]}  Ke7 {[%clk 0:00:27]} 36. Bb5 {[%clk 0:00:32]}  e5 {[%clk 0:00:27]} 37. b3 {[%clk 0:00:32]}  f6 {[%clk 0:00:26]} 38. Kg2 {[%clk 0:00:33]}  g6 {[%clk 0:00:26]} 39. Rc8 {[%clk 0:00:30]}  f5 {[%clk 0:00:19]} 40. Rh8 {[%clk 0:00:30]}  Kf6 {[%clk 0:00:18]} 41. Rxh7 {[%clk 0:00:29]}  e4 {[%clk 0:00:18]} 42. Ra7 {[%clk 0:00:27]}  Ke5 {[%clk 0:00:17]} 43. Rxa5 {[%clk 0:00:26]}  Kd4 {[%clk 0:00:18]} 44. Ra7 {[%clk 0:00:22]}  Kc3 {[%clk 0:00:17]} 45. Bc4 {[%clk 0:00:19]}  f4 {[%clk 0:00:17]} 46. Kf1 {[%clk 0:00:16]}  Kd2 {[%clk 0:00:16]} 47. a5 {[%clk 0:00:15]}  f3 {[%clk 0:00:12]} 48. a6 {[%clk 0:00:13]}  Bc5 {[%clk 0:00:11]} 49. Rc7 {[%clk 0:00:13]}  Bxf2 {[%clk 0:00:09]} 50. Kxf2 {[%clk 0:00:12]} 1-0

[Event "December 19 Early 2023"]
[Site "https://www.chess.com"]
[Date "2023.12.19"]
[Round "1"]
[White "Herman, Matthew"]
[Black "Corrales Jimenez, Fidel"]
[Result "1-0"]
[Board "40"]
[TimeControl "180+1"]
[WhiteFideId "2028964"]
[BlackFideId "3506690"]
[WhiteElo "2368"]
[BlackElo "2507"]
[WhiteTeam "USA"]
[BlackTeam "USA"]
[WhiteClock "0:00:06"]
[BlackClock "0:00:36"]

1. e4 {[%clk 0:03:00]}  c5 {[%clk 0:02:59]} 2. Nf3 {[%clk 0:03:01]}  d6 {[%clk 0:02:59]} 3. d4 {[%clk 0:03:01]}  cxd4 {[%clk 0:03:00]} 4. Nxd4 {[%clk 0:03:02]}  Nf6 {[%clk 0:03:01]} 5. Nc3 {[%clk 0:03:02]}  Nc6 {[%clk 0:03:01]} 6. Bc4 {[%clk 0:03:03]}  Nxd4 {[%clk 0:02:59]} 7. Qxd4 {[%clk 0:03:02]}  e6 {[%clk 0:02:55]} 8. Bg5 {[%clk 0:02:49]}  h6 {[%clk 0:02:51]} 9. Bh4 {[%clk 0:02:45]}  a6 {[%clk 0:02:51]} 10. O-O-O {[%clk 0:02:44]}  Qc7 {[%clk 0:02:47]} 11. Rhe1 {[%clk 0:01:44]}  Be7 {[%clk 0:02:46]} 12. Bb3 {[%clk 0:01:04]}  Bd7 {[%clk 0:02:37]} 13. f4 {[%clk 0:00:55]}  Bc6 {[%clk 0:02:33]} 14. Nd5 {[%clk 0:00:37]}  Nxd5 {[%clk 0:01:55]} 15. exd5 {[%clk 0:00:35]}  Bxh4 {[%clk 0:01:55]} 16. dxc6 {[%clk 0:00:27]}  Bxe1 {[%clk 0:01:46]} 17. cxb7 {[%clk 0:00:23]}  Qxb7 {[%clk 0:01:40]} 18. Qxd6 {[%clk 0:00:19]}  Qb4 {[%clk 0:01:07]} 19. Qc6+ {[%clk 0:00:09]}  Ke7 {[%clk 0:01:07]} 20. Rd7+ {[%clk 0:00:04]}  Kf6 {[%clk 0:00:40]} 21. Rxf7+ {[%clk 0:00:05]}  Kg6 {[%clk 0:00:35]} 22. Qxe6+ {[%clk 0:00:05]}  Kh7 {[%clk 0:00:35]} 23. Qf5+ {[%clk 0:00:06]}  Kg8 {[%clk 0:00:36]} 24. Rf8# {[%clk 0:00:06]} 1-0

[Event "December 19 Early 2023"]
[Site "https://www.chess.com"]
[Date "2023.12.19"]
[Round "1"]
[White "Baskakov, Egor"]
[Black "Krzywda, Andrzej"]
[Result "1-0"]
[Board "41"]
[TimeControl "180+1"]
[WhiteFideId "24197866"]
[BlackFideId "1114565"]
[WhiteElo "2225"]
[BlackElo "2130"]
[WhiteTeam "RUS"]
[BlackTeam "POL"]
[WhiteClock "0:01:53"]
[BlackClock "0:00:03"]

1. e4 {[%clk 0:03:00]}  e5 {[%clk 0:02:59]} 2. Nc3 {[%clk 0:03:00]}  Nf6 {[%clk 0:02:59]} 3. g3 {[%clk 0:03:00]}  d5 {[%clk 0:02:53]} 4. exd5 {[%clk 0:03:01]}  Nxd5 {[%clk 0:02:53]} 5. Bg2 {[%clk 0:03:02]}  Nxc3 {[%clk 0:02:53]} 6. bxc3 {[%clk 0:03:03]}  Nc6 {[%clk 0:02:53]} 7. d3 {[%clk 0:03:03]}  Bc5 {[%clk 0:02:54]} 8. Ne2 {[%clk 0:03:03]}  O-O {[%clk 0:02:53]} 9. O-O {[%clk 0:03:03]}  Bb6 {[%clk 0:02:54]} 10. h3 {[%clk 0:03:03]}  Qf6 {[%clk 0:02:37]} 11. Kh2 {[%clk 0:03:01]}  Re8 {[%clk 0:02:33]} 12. Be3 {[%clk 0:02:52]}  Bxe3 {[%clk 0:02:26]} 13. fxe3 {[%clk 0:02:53]}  Qh6 {[%clk 0:02:26]} 14. Qd2 {[%clk 0:02:48]}  Bd7 {[%clk 0:02:22]} 15. c4 {[%clk 0:02:46]}  Rad8 {[%clk 0:02:20]} 16. Nc3 {[%clk 0:02:46]}  Nd4 {[%clk 0:01:49]} 17. Qf2 {[%clk 0:02:41]}  Nf5 {[%clk 0:01:41]} 18. Rae1 {[%clk 0:02:37]}  f6 {[%clk 0:01:41]} 19. Bxb7 {[%clk 0:02:19]}  c6 {[%clk 0:01:24]} 20. Bxc6 {[%clk 0:02:18]}  Bxc6 {[%clk 0:01:18]} 21. Qxf5 {[%clk 0:02:18]}  Bd7 {[%clk 0:01:19]} 22. Qf2 {[%clk 0:02:08]}  Bxh3 {[%clk 0:01:16]} 23. Rh1 {[%clk 0:02:08]}  Bg4+ {[%clk 0:01:05]} 24. Kg2 {[%clk 0:02:06]}  Qg6 {[%clk 0:01:05]} 25. e4 {[%clk 0:02:02]}  Be6 {[%clk 0:00:59]} 26. Nd5 {[%clk 0:02:02]}  Bxd5 {[%clk 0:00:56]} 27. cxd5 {[%clk 0:02:02]}  Re7 {[%clk 0:00:51]} 28. c4 {[%clk 0:02:01]}  Rb8 {[%clk 0:00:51]} 29. Rb1 {[%clk 0:01:59]}  Qe8 {[%clk 0:00:50]} 30. c5 {[%clk 0:01:56]}  Reb7 {[%clk 0:00:39]} 31. Rxb7 {[%clk 0:01:56]}  Rxb7 {[%clk 0:00:40]} 32. c6 {[%clk 0:01:56]}  Rb6 {[%clk 0:00:30]} 33. Rc1 {[%clk 0:01:56]}  Qb8 {[%clk 0:00:20]} 34. c7 {[%clk 0:01:55]}  Qc8 {[%clk 0:00:20]} 35. Qxb6 {[%clk 0:01:55]}  axb6 {[%clk 0:00:20]} 36. d6 {[%clk 0:01:56]}  Kf7 {[%clk 0:00:12]} 37. d7 {[%clk 0:01:55]}  Qa6 {[%clk 0:00:10]} 38. c8=Q {[%clk 0:01:53]}  Qxa2+ {[%clk 0:00:10]} 39. Rc2 {[%clk 0:01:53]}  Qe6 {[%clk 0:00:03]} 40. d8=Q {[%clk 0:01:53]} 1-0